[Event "Krakow Championship-A 2022"]
[Site "Krakow"]
[Date "2022.06.30"]
[Round "7.16"]
[White "Lye, Lik Zang"]
[Black "Szustakowski, Antoni"]
[Result "0-1"]
[WhiteElo "2358"]
[BlackElo "2265"]
[Annotator "TA"]
[PlyCount "89"]
[EventDate "2022.06.25"]
[EventType "swiss"]
[EventCountry "POL"]
[SourceTitle "playchess.com"]
[Source "ChessBase"]
[SourceQuality "1"]
[TimeControl "40/5400+30:1800+30"]

{[%evp 15,89,-20,-18,-20,-20,-26,-18,-22,-22,-14,-19,-33,-21,-35,-25,-33,-6,-12,-18,-25,-18,-33,-15,-21,-15,-20,-21,-29,-11,-19,-20,-25,-10,-144,-75,-75,-46,-80,-10,-16,-37,-119,-31,-168,-170,-439,-435,-697,-298,-298,-305,-1060,-440,-423,-329,-329,-304,-295,-295,-660,-670,-29965,-29966,-29965,-29966,-29965,-29966,-29967,-29966,-29967,-29968,-29972,-29968,-29967,-29967,-5210]} 1. d4 {[%emt 0:00:07]} Nf6 {[%emt 0:00:07]} 2. Nf3 {[%emt 0:00:24]} b6 {[%emt 0:00:23]} 3. g3 {[%emt 0:01:40]} Bb7 {[%emt 0:00:11]} 4. Bg2 {[%emt 0:00:26]} c5 {[%emt 0:00:46]} 5. c3 {[%emt 0:04:30]} e6 {[%emt 0:03:58]} 6. O-O {[%emt 0:02:16]} Be7 {[%emt 0:00:09]} 7. Bg5 {[%emt 0:12:55]} O-O {[%emt 0:02:30]} 8. Nbd2 {[%emt 0:01:58][%cal Bb1d2,Bd2f3,Bf3e5][%mdl 32]} d5 {[%emt 0:03:33]} 9. Ne5 {[%emt 0:13:11] A47: 1 d4 Nf6 2 Nf3 b6: Torre, London and Colle Systems.} Nc6 {[%emt 0:03:49]} 10. Ndf3 {[%emt 0:02:45]} Rc8 {[%emt 0:01:03]} 11. Nxc6 {[%emt 0:02:37] The position is equal.} Bxc6 {[%emt 0:00:15]} 12. Ne5 {[%emt 0:00:31]} Bb7 {[%emt 0:02:13][%cal Bc6b7,Bb7a6,Ba6e2][%mdl 32] [#]} 13. a4 $146 {[%emt 0:07:18]} ({Predecessor:} 13. Qd2 Ne4 14. Bxe4 Bxg5 15. f4 Bxf4 16. Bxh7+ Kxh7 17. Qxf4 Qe7 18. e3 Kg8 19. Rf2 {1-0 (63) Piesik,P (2396)-Vokhidov,S (2529) Chess.com INT 2020}) 13... h6 {[%emt 0:04:51]} 14. Bf4 {[%emt 0:04:26]} Ne4 {[%emt 0:01:50]} 15. Qb3 {[%emt 0:12:00]} cxd4 {[%emt 0:07:27]} 16. cxd4 {[%emt 0:00:46]} Ba6 {[%emt 0:00:08]} 17. Rfe1 {[%emt 0:03:23]} Bd6 {[%emt 0:01:42]} 18. Rac1 {[%emt 0:10:03]} Rxc1 {[%emt 0:05:58]} (18... Qe7 {feels hotter.} 19. Be3 Bxe5 20. dxe5 Bc4) 19. Rxc1 {[%emt 0:00:26]} Bxe5 {[%emt 0:00:35]} 20. Bxe5 {[%emt 0:03:23]} Bxe2 {[%emt 0:01:34]} 21. Qe3 {[%emt 0:04:26]} Ba6 {[%emt 0:01:33]} (21... Qg5 $2 22. Bf4 Qh5 23. f3 $18) 22. Bxe4 {[%emt 0:04:57]} dxe4 {[%emt 0:00:06]} 23. Qxe4 {[%emt 0:00:13]} Qg5 {[%emt 0:01:49]} 24. f4 {[%emt 0:05:22] [#]} (24. Rc7 $11) 24... Qh5 {[%emt 0:04:29]} (24... Qe7 $142 $1 {Threatens to win with ...f6.} 25. Rc7 Qb4 26. Rxa7 Qc4) 25. Kg2 $17 {[%emt 0:01:10]} Rd8 {[%emt 0:04:36]} (25... f6 $5 {[%cal Rf6e5]} 26. Bd6 Rd8 $17) 26. h3 {[%emt 0:01:13] [#]} Rd7 {[%emt 0:04:36]} (26... f6 $1 $17 {[%cal Rf6e5]} 27. Bc7 Qd5 28. Qxd5 Rxd5) 27. g4 {[%emt 0:00:53]} Qh4 {[%emt 0:00:06] And now ...Bb7 would win.} 28. Rc7 {[%emt 0:00:36] Inhibits Bb7.} ({White should try} 28. Qa8+ $15 Rd8 29. Qe4 (29. Qxa7 Bd3 $17)) 28... Qd8 {[%emt 0:01:14]} ({Better is} 28... Rxc7 $17 29. Bxc7 Bc4 30. Qa8+ Kh7 31. Qe4+ Kg8 32. Qa8+ Kh7 33. Qe4+ Kg8) 29. Qc6 {[%emt 0:00:30] Against Bb7. White does not recover from this.} (29. Rxd7 $15 Qxd7 30. Qa8+ Kh7 31. Qe4+ g6 32. Kg3) 29... Rxc7 $19 {[%emt 0:01:00]} 30. Qxc7 {[%emt 0:00:31][%mdl 4096] Endgame KQB-KQB} (30. Bxc7 {is the only way for White.} Qxd4 31. Kg3) 30... Qd5+ {[%emt 0:00:12]} 31. Kf2 {[%emt 0:00:23]} (31. Kg3 $142 Qe4 32. Qc3) 31... f6 {[%emt 0:01:21]} (31... Qh1 $142 32. f5 exf5 33. gxf5 Qf1+ 34. Kg3 Qe1+ 35. Kf4 Qf1+ 36. Kg3 Qe1+ 37. Kf4 Qf2+ 38. Ke4 Qg2+ 39. Ke3 Qe2+ 40. Kf4 Qf2+ 41. Ke4 Qg2+ 42. Ke3 Qe2+ 43. Kf4 Qf2+) 32. Qxa7 {[%emt 0:00:33]} Bb7 {[%emt 0:02:07]} ({Not} 32... fxe5 33. Qxa6 Qxd4+ 34. Kf3 $17) 33. Qxb6 $2 {[%emt 0:00:32]} (33. Bxf6 gxf6 34. Qxb6) 33... fxe5 {[%emt 0:01:10]} (33... Qf3+ $142 34. Ke1 Qe3+ 35. Kf1 Qd3+ 36. Ke1 Bd5 37. Qb8+ Kh7) 34. dxe5 {[%emt 0:00:18]} Qd2+ {[%emt 0:07:20]} 35. Kg3 {[%emt 0:00:31]} Bd5 {[%emt 0:00:20] ( -> ...Qg2+)} 36. Qf2 {[%emt 0:00:39] Against Qg2+} Qb4 {[%emt 0:01:41]} 37. f5 $2 {[%emt 0:00:31]} (37. a5 Qxa5 38. Kh4) 37... Qxa4 {[%emt 0:06:29]} 38. Kh4 {[%emt 0:00:33]} Qe4 {[%emt 0:00:30] Black mates.} 39. fxe6 {[%emt 0:00:29]} Bxe6 {[%emt 0:00:39]} 40. Kg3 {[%emt 0:00:28]} Qxe5+ {[%emt 0:00:06]} 41. Kg2 {[%emt 0:30:25]} Bd5+ {[%emt 0:30:14]} 42. Kg1 {[%emt 0:00:13]} Qe4 {[%emt 0:00:09][%csl Gd5][%cal Re4h1]} 43. Kh2 {[%emt 0:00:33]} Qf3 {[%emt 0:00:27]} 44. Qxf3 {[%emt 0:00:00]} Bxf3 {[%emt 0:00:00]} 45. Kg3 {[%emt 0:00:00] Weighted Error Value: White=0.84/Black=0.43} 0-1

[Event "Krakow Championship-A 2022"]
[Site "Krakow"]
[Date "2022.06.30"]
[Round "7.17"]
[White "Turcan, Richard"]
[Black "Sieber, Fiona"]
[Result "1/2-1/2"]
[ECO "B90"]
[WhiteElo "2278"]
[BlackElo "2264"]
[Annotator "TA"]
[PlyCount "90"]
[EventDate "2022.06.25"]
[EventType "swiss"]
[EventCountry "POL"]
[SourceTitle "playchess.com"]
[Source "ChessBase"]
[SourceQuality "1"]
[TimeControl "40/5400+30:1800+30"]

{[%evp 12,90,22,25,36,28,43,35,37,43,49,26,56,3,4,-6,65,-6,-6,0,-5,-52,-31,-50,-47,-81,-87,-113,-75,-166,-158,-157,-168,-155,-169,-232,-215,-250,-225,-304,-307,-371,-353,-397,-336,-302,-320,-310,-206,-366,-356,-432,-216,-311,-123,-125,-47,-48,-44,-195,-37,-37,-39,-89,-89,-82,-31,-31,-31,-70,-55,-72,-42,-38,-24,-22,0,-52,0,-27,0]} 1. e4 {[%emt 0:03:40]} c5 {[%emt 0:00:03]} 2. Nf3 {[%emt 0:00:22]} d6 {[%emt 0:00:03]} 3. d4 {[%emt 0:00:05]} cxd4 {[%emt 0:00:05]} 4. Nxd4 {[%emt 0:00:07]} Nf6 {[%emt 0:00:05][%cal Bg8f6,Bf6d7,Bd7c5][%mdl 32]} 5. Nc3 {[%emt 0:00:06]} a6 {[%emt 0:00:02]} 6. h3 {[%emt 0:00:41]} e6 {[%emt 0:00:20]} 7. g4 {[%emt 0:00:27]} Be7 {[%emt 0:00:04] B81: Sicilian Scheveningen: Keres Attack.} 8. g5 {[%emt 0:00:38]} Nfd7 {[%emt 0:00:07]} 9. Be3 {[%emt 0:00:22]} b5 {[%emt 0:00:15] White is slightly better.} (9... Bxg5 10. Nxe6 $1 fxe6 11. Qh5+ g6 12. Qxg5 $16) 10. a3 {[%emt 0:00:17]} Bb7 {[%emt 0:00:14]} 11. Qd2 {[%emt 0:01:27]} Nc6 {[%emt 0:02:37]} 12. O-O-O {[%emt 0:05:17]} (12. h4 $14) 12... Nc5 $11 {[%emt 0:08:29]} 13. h4 {[%emt 0:19:42]} O-O {[%emt 0:04:37]} (13... b4 $1 $11 14. Nxc6 Bxc6 15. axb4 Nxe4 16. Nxe4 Bxe4) 14. Nxc6 {[%emt 0:03:02]} (14. f3 $14) 14... Bxc6 {[%emt 0:00:03]} 15. f3 $1 {[%emt 0:00:49]} Qb8 {[%emt 0:06:48] [#] Threatening ...a5.} 16. g6 $146 {[%emt 0:12:47]} (16. h5 $11) ({Predecessor:} 16. h5 a5 17. Nb1 b4 18. g6 bxa3 19. Nxa3 Na4 20. Bd4 h6 21. Rg1 e5 22. Bc3 {0-1 (33) Hansen,M (2452)-Sethuraman,S (2647) Hastings 2017}) 16... b4 $15 {[%emt 0:14:07]} (16... hxg6 17. b4 $11) 17. axb4 {[%emt 0:19:11]} Qxb4 {[%emt 0:00:08] Threatens to win with ...Rab8.} 18. Qd4 {[%emt 0:00:16]} a5 {[%emt 0:09:35][%cal Ba6a5,Ba5b4][%mdl 32]} 19. gxh7+ {[%emt 0:12:28]} Kxh7 {[%emt 0:03:26]} 20. Bg5 {[%emt 0:08:40]} (20. Rg1 $17 {is a better defense.} Bf6 21. Qxb4 (21. Qxd6 $2 Bxc3 22. bxc3 Qa3+ 23. Kd2 Nxe4+ 24. fxe4 Qxd6+ $19) 21... axb4 22. Nb1) 20... f6 $19 {[%emt 0:00:24]} 21. Be3 {[%emt 0:00:09][%cal Oc3b5]} Rfb8 $36 {[%emt 0:02:41][%mdl 2048] Inhibits Nb5. Black is on the roll.} 22. Qxb4 {[%emt 0:02:45]} axb4 {[%emt 0:00:06]} 23. Nb1 {[%emt 0:00:07]} (23. Ne2 $142) 23... d5 {[%emt 0:02:15]} 24. exd5 {[%emt 0:00:39]} Bxd5 {[%emt 0:00:11]} ({Weaker is} 24... exd5 25. Bf4 Rd8 26. Bh3) 25. Rh3 {[%emt 0:05:38]} Rc8 {[%emt 0:02:53][%csl Gd5][%cal Rc5b3]} 26. Kd2 {[%emt 0:00:36]} Ra2 {[%emt 0:01:30]} 27. Bd4 {[%emt 0:01:45]} e5 {[%emt 0:05:09]} 28. Bxc5 {[%emt 0:00:05]} Bxc5 {[%emt 0:00:07]} ({Not} 28... Rxc5 $2 29. Bd3+ Kg8 30. Kc1 $19) 29. Bd3+ {[%emt 0:00:09]} Kg8 {[%emt 0:01:15] Hoping for ...Be6.} 30. Ke2 $2 {[%emt 0:01:00]} (30. Bf5 Rd8 31. Ke1) 30... Rxb2 {[%emt 0:06:56]} 31. Nd2 {[%emt 0:00:01]} Bd4 {[%emt 0:01:02]} (31... b3 $142 32. Rhh1 bxc2) 32. Rhh1 {[%emt 0:02:07]} (32. Rb1 $142) 32... Kf7 $2 {[%emt 0:07:15]} (32... b3 $19 {is more deadly.} 33. cxb3 Rc3) 33. Rb1 $17 {[%emt 0:00:59]} Rh8 {[%emt 0:04:04]} ({Better is} 33... Rxb1 $17 34. Rxb1 Rb8) 34. Rxb2 $15 {[%emt 0:00:09]} Bxb2 {[%emt 0:00:02] This bishop pair is nice.} 35. Ne4 $2 {[%emt 0:00:54] [#]} (35. Nc4 $1 $15 Bc3 36. Nd6+ Ke7 37. Nf5+ Kf8 38. Nd6) 35... Bd4 $2 {[%emt 0:06:09]} ({Black should try} 35... g6 $1 $19 {And now ...Bd4 would win.} 36. Ng3 Be6) 36. Nd6+ $1 {[%emt 0:00:30]} Kf8 {[%emt 0:01:56]} ({But not} 36... Ke6 $6 37. Nf5 $17) 37. Nf5 {[%emt 0:00:23]} (37. h5 $15) 37... Bc5 $17 {[%emt 0:03:34]} 38. Ra1 {[%emt 0:00:38] Black must now prevent Ra5.} Kf7 {[%emt 0:00:55]} (38... g6 $17 39. Ne3 Bf7) 39. Ra5 $15 {[%emt 0:00:22]} Rc8 {[%emt 0:00:10]} 40. Ba6 {[%emt 0:00:38]} Rc7 {[%emt 0:00:26]} 41. Bd3 {[%emt 0:00:45]} Be6 {[%emt 0:02:39]} 42. h5 {[%emt 0:03:32]} Bf8 {[%emt 0:06:02]} 43. Ne3 {[%emt 0:03:51] Inhibits Bc4.} Bc5 {[%emt 0:06:37]} 44. Nf5 {[%emt 0:03:25]} Bf8 {[%emt 0:08:26]} 45. Ne3 $1 {[%emt 0:00:25] Against Bc4} Bc5 {[%emt 0:04:18] White happily takes the draw.  Weighted Error Value: White=0.30/Black=0.32} 1/2-1/2

[Event "Krakow Championship-A 2022"]
[Site "Krakow"]
[Date "2022.06.30"]
[Round "7.18"]
[White "Kvaloy, Aksel Bu"]
[Black "Trybus, Daniel"]
[Result "0-1"]
[ECO "A43"]
[WhiteElo "2296"]
[BlackElo "2145"]
[Annotator "NA RC"]
[PlyCount "106"]
[EventDate "2022.06.25"]
[EventType "swiss"]
[EventCountry "POL"]
[SourceTitle "playchess.com"]
[Source "ChessBase"]
[SourceQuality "1"]
[TimeControl "40/5400+30:1800+30"]

1. d4 {[%emt 0:00:59]} c5 {[%emt 0:00:25]} 2. dxc5 {[%emt 0:03:02]} e6 {[%emt 0:00:43]} 3. Nc3 {[%emt 0:01:22]} Nf6 {[%emt 0:01:30]} 4. e4 {[%emt 0:03:38]} Nc6 {[%emt 0:01:48]} 5. Be3 {[%emt 0:11:32]} Qa5 {[%emt 0:01:01]} 6. f3 {[%emt 0:06:34]} Bxc5 {[%emt 0:01:58]} 7. Bxc5 {[%emt 0:00:21]} Qxc5 {[%emt 0:00:03]} 8. Qd2 {[%emt 0:01:31]} O-O {[%emt 0:02:41]} 9. O-O-O {[%emt 0:02:24]} Rd8 {[%emt 0:03:35]} 10. Nge2 {[%emt 0:11:06]} d5 {[%emt 0:03:17]} 11. exd5 {[%emt 0:01:20]} Nb4 {[%emt 0:03:59]} 12. Nf4 {[%emt 0:08:26]} Nbxd5 {[%emt 0:01:44]} 13. Nfxd5 {[%emt 0:01:46]} Nxd5 {[%emt 0:00:25]} 14. Qg5 {[%emt 0:17:04]} f6 {[%emt 0:00:22]} 15. Qd2 {[%emt 0:00:28]} b6 {[%emt 0:01:56]} 16. Nxd5 {[%emt 0:03:56]} Rxd5 {[%emt 0:00:21]} 17. Bd3 {[%emt 0:00:09]} Bb7 {[%emt 0:03:47]} 18. Kb1 {[%emt 0:02:11]} Rad8 {[%emt 0:01:35]} 19. Qe1 {[%emt 0:01:40]} Qd6 {[%emt 0:04:33]} 20. Qh4 {[%emt 0:01:50]} f5 {[%emt 0:00:18]} 21. Rde1 {[%emt 0:05:40]} Ba6 {[%emt 0:04:27]} 22. Qa4 {[%emt 0:03:23]} Bxd3 {[%emt 0:00:38]} 23. cxd3 {[%emt 0:00:01]} a5 {[%emt 0:00:37]} 24. Qb3 {[%emt 0:02:36]} Kf7 {[%emt 0:00:21]} 25. Re3 {[%emt 0:04:15]} Rxd3 {[%emt 0:00:52]} 26. Rxd3 {[%emt 0:00:01]} Qxd3+ {[%emt 0:00:01]} 27. Qxd3 {[%emt 0:00:12]} Rxd3 {[%emt 0:00:02]} 28. Kc2 {[%emt 0:00:09]} Rd6 {[%emt 0:00:16]} 29. Re1 {[%emt 0:00:33]} Kf6 {[%emt 0:00:14]} 30. a4 {[%emt 0:01:58]} g5 {[%emt 0:00:29]} 31. h3 {[%emt 0:00:23]} h5 {[%emt 0:01:19]} 32. b3 {[%emt 0:00:40]} e5 {[%emt 0:00:15]} 33. Kc3 {[%emt 0:00:20]} Rd4 {[%emt 0:00:21]} 34. Re2 {[%emt 0:01:28]} Ke6 {[%emt 0:01:14]} 35. Re1 {[%emt 0:01:02]} Kd5 {[%emt 0:00:21]} 36. Rf1 {[%emt 0:00:18]} Kc5 {[%emt 0:01:03]} 37. Re1 {[%emt 0:01:15]} e4 {[%emt 0:00:49]} 38. fxe4 {[%emt 0:00:34]} Rxe4 {[%emt 0:00:24]} 39. Rc1 {[%emt 0:01:25]} Kd5 {[%emt 0:02:37]} 40. Rd1+ {[%emt 0:01:10]} Ke5 {[%emt 0:00:03]} 41. Rd2 {[%emt 0:30:54]} g4 {[%emt 0:30:57]} 42. hxg4 {[%emt 0:00:10]} hxg4 {[%emt 0:00:08]} 43. Rf2 {[%emt 0:01:04]} f4 {[%emt 0:00:08]} 44. Kd3 {[%emt 0:00:27]} Re3+ {[%emt 0:00:16]} 45. Kc4 {[%emt 0:00:10]} f3 {[%emt 0:00:12]} 46. gxf3 {[%emt 0:00:12]} gxf3 {[%emt 0:00:02]} 47. Rh2 {[%emt 0:00:55]} Re4+ {[%emt 0:00:55]} 48. Kd3 {[%emt 0:00:20]} Rb4 {[%emt 0:00:13]} 49. Kc3 {[%emt 0:00:34]} Kf4 {[%emt 0:00:06]} 50. Rh8 {[%emt 0:00:50]} f2 {[%emt 0:00:14]} 51. Rf8+ {[%emt 0:00:04]} Ke3 {[%emt 0:00:02]} 52. Re8+ {[%emt 0:00:09]} Kf3 {[%emt 0:00:05]} 53. Rf8+ {[%emt 0:00:09]} Rf4 {[%emt 0:00:05]} 0-1

[Event "Krakow Championship-A 2022"]
[Site "Krakow"]
[Date "2022.06.30"]
[Round "7.19"]
[White "Shehzad, Shazil"]
[Black "Kyc, Jerzy"]
[Result "1-0"]
[ECO "B52"]
[WhiteElo "2237"]
[BlackElo "2213"]
[Annotator "TA"]
[PlyCount "111"]
[EventDate "2022.06.25"]
[EventType "swiss"]
[EventCountry "POL"]
[SourceTitle "playchess.com"]
[Source "ChessBase"]
[SourceQuality "1"]
[TimeControl "40/5400+30:1800+30"]

{[%evp 11,111,10,20,16,33,12,15,12,18,25,27,25,29,23,29,33,25,16,19,16,2,0,3,5,24,0,0,0,0,0,0,0,42,37,53,52,72,0,226,228,238,265,343,241,222,16,322,308,316,338,500,493,463,468,596,583,714,739,702,692,735,719,691,624,797,764,767,687,1339,1274,2162,2194,1498,1192,1682,604,604,604,604,604,604,604,600,597,513,511,954,927,909,909,909,909,1112,1107,1449,1895,29962,11329,29971,29973,4627,4618]} 1. e4 {[%emt 0:07:35]} c5 {[%emt 0:00:08]} 2. Nf3 {[%emt 0:02:35]} d6 {[%emt 0:00:03]} 3. Bb5+ {[%emt 0:00:44]} Bd7 {[%emt 0:00:11]} 4. Bxd7+ {[%emt 0:00:12]} Qxd7 {[%emt 0:00:02]} 5. c4 {[%emt 0:00:08]} e5 {[%emt 0:02:27]} 6. Nc3 {[%emt 0:00:27]} Nc6 {[%emt 0:00:22]} 7. a3 {[%emt 0:00:16] B52: Sicilian: Moscow Variation with 3...Bd7.} Nge7 {[%emt 0:00:20]} 8. O-O {[%emt 0:00:22]} g6 {[%emt 0:00:35]} 9. b4 {[%emt 0:00:06] The position is equal.} b6 {[%emt 0:08:54]} (9... cxb4 10. axb4 Bg7 11. b5 $14) 10. Nd5 {[%emt 0:03:16] [#]} Bg7 $146 {[%emt 0:00:32] Inhibits Nf6+.} ({Predecessor:} 10... Nxd5 11. exd5 Ne7 12. d4 f6 13. dxe5 dxe5 14. bxc5 bxc5 15. Nd2 Nf5 16. Ne4 Kf7 {1-0 (23) De Silva,L (2131)-Gunathilake,M (1415) Nugegoda 2021}) 11. b5 {[%emt 0:03:15]} Nd4 {[%emt 0:09:48]} 12. Nxd4 {[%emt 0:02:11]} Nxd5 {[%emt 0:09:13]} 13. Ne2 {[%emt 0:01:36]} Nc7 {[%emt 0:01:28]} 14. Nc3 {[%emt 0:02:36]} O-O {[%emt 0:12:04]} 15. d3 {[%emt 0:01:41]} f5 {[%emt 0:05:51]} 16. a4 {[%emt 0:01:55]} a5 {[%emt 0:00:51]} 17. bxa6 {[%emt 0:00:07][%cal Oa6a7]} Rxa6 {[%emt 0:00:09]} 18. Bd2 {[%emt 0:04:07]} f4 {[%emt 0:04:20]} 19. f3 {[%emt 0:02:04]} g5 {[%emt 0:01:35]} 20. Rb1 {[%emt 0:05:28]} h5 {[%emt 0:01:04]} 21. Be1 {[%emt 0:02:14]} g4 {[%emt 0:01:16]} 22. Rf2 {[%emt 0:04:59]} gxf3 {[%emt 0:17:15]} 23. Qxf3 {[%emt 0:03:01]} Qf7 {[%emt 0:03:17]} 24. Nb5 {[%emt 0:01:38]} (24. Ra2 $16) 24... Rxa4 $2 {[%emt 0:03:53]} (24... Nxb5 $11 {and Black stays safe.} 25. Rxb5 Rfa8) 25. Nxd6 $18 {[%emt 0:01:53]} Qd7 {[%emt 0:02:00]} 26. Nf5 {[%emt 0:03:54]} (26. Rxb6 $2 Na8 27. Rb1 (27. Rb7 $2 Qxd6 28. Qd1 Ra3 $19) 27... Qxd6 $17) 26... Rf6 {[%emt 0:00:49]} 27. Bc3 {[%emt 0:01:53]} Ra3 {[%emt 0:02:27]} 28. Rc1 {[%emt 0:02:17]} (28. Bxe5 Rxf5 29. Bxg7 (29. exf5 Bxe5 30. Rd2 Qxf5 $17) 29... Rxd3 $11) (28. Bb2 $18 Rxd3 29. Qxh5) 28... Qe8 $2 {[%emt 0:01:11][%mdl 8192] Black cannot hold the game after this.} (28... Rxf5 $11 29. exf5 e4 30. Qxh5 (30. dxe4 Bxc3 31. Kf1 Qd4 $11) 30... Rxc3 31. Rxc3 Bxc3 32. Qg5+ (32. Rxf4 Qd4+ 33. Kh1 Qxd3 $11) (32. dxe4 Bd4 $11) 32... Kf8 33. Qxf4 (33. dxe4 $2 {is a self mate.} Qd1+ 34. Rf1 Bd4+ 35. Kh1 Qxf1#) 33... exd3) 29. Qe2 {[%emt 0:01:51]} Rg6 {[%emt 0:01:03]} 30. Qb2 {[%emt 0:02:03]} ({Inferior is} 30. Qxh5 Rxc3 31. Rxc3 {[#]} Rxg2+ $1 32. Rxg2 Qxh5 $11) 30... Rxc3 {[%emt 0:02:21]} (30... Ra7 $142 31. Nxg7 Rxg7 32. Bxe5 Rf7 33. Qxb6 Ne6) 31. Rxc3 {[%emt 0:00:43]} Bf8 {[%emt 0:04:36]} 32. Rb3 {[%emt 0:01:00] Against b5} b5 {[%emt 0:00:59]} 33. cxb5 {[%emt 0:03:09] Strongly threatening b6.} c4 {[%emt 0:00:02]} 34. dxc4 {[%emt 0:00:14]} Bc5 {[%emt 0:00:04]} 35. Kf1 {[%emt 0:03:24]} Na8 {[%emt 0:04:22]} 36. Rd2 {[%emt 0:02:41]} Nb6 {[%emt 0:00:10] Inhibits Rd5.} 37. Qc3 {[%emt 0:00:55]} Qe6 {[%emt 0:02:21]} 38. Rd8+ {[%emt 0:03:28]} Kf7 {[%emt 0:00:37]} 39. Qd3 {[%emt 0:01:20]} f3 {[%emt 0:00:24]} 40. Qxf3 {[%emt 0:02:48] White wants to mate with Nd6+.} Qxc4+ {[%emt 0:00:10]} 41. Rbd3 {[%emt 0:30:08]} Qc1+ {[%emt 0:01:43]} 42. Rd1 {[%emt 0:00:00] Nd6+ would kill now.} Qc4+ {[%emt 0:00:06]} 43. Qd3 {[%emt 0:00:00] Hoping for Qxc4+.} Qa2 {[%emt 0:00:39][%csl Gc5][%cal Ra2f2]} 44. Qe2 {[%emt 0:00:00] Against Qf2+} Qxe2+ {[%emt 0:00:13]} 45. Kxe2 {[%emt 0:00:00]} Rxg2+ {[%emt 0:00:02]} 46. Kf3 {[%emt 0:00:00]} Rb2 {[%emt 0:01:35]} 47. Rb8 {[%emt 0:00:00]} Rb3+ {[%emt 0:01:17]} 48. Kg2 {[%emt 0:00:00]} Rb4 {[%emt 0:03:18]} (48... Rxb5 $142 49. Rc1 Ra5 50. Rxc5 Rxc5 51. Rxb6 Kg8) 49. Rb7+ {[%emt 0:00:00]} Kf6 {[%emt 0:00:33] [#]} 50. Rxb6+ $1 {[%emt 0:00:00]} Bxb6 {[%emt 0:00:01][%mdl 4096] Endgame KRB-KRN} 51. Rd6+ {[%emt 0:00:00]} Kg5 {[%emt 0:00:06]} 52. Rxb6 {[%emt 0:00:00]} Rxe4 {[%emt 0:00:18]} 53. Nd6 {[%emt 0:00:00]} Re2+ {[%emt 0:00:16]} 54. Kf3 {[%emt 0:00:00] White threatens Ne4+ and mate.} Rxh2 {[%emt 0:00:13]} 55. Rb8 {[%emt 0:00:00]} Rh3+ {[%emt 0:02:53]} 56. Ke4 {[%emt 0:00:00] Weighted Error Value: White=0.26 (precise) /Black=0.49} 1-0